[Event "Titled Tuesday Blitz May 9 Early 2023"]
[White "Golubev, Mikhail"]
[Black "Janaszak, Dawid"]
[WhiteFideId "14100983"]
[BlackFideId "1119206"]
[WhiteElo "2374"]
[BlackElo "2220"]
[Result "1-0"]
[Round "03"]
[TimeControl "180+2"]
[Date "2023.05.09"]
[WhiteClock "0:01:06"]
[BlackClock "0:01:02"]

1. e4 {[%clk 0:03:00]}  c5 {[%clk 0:03:00]} 2. Nf3 {[%clk 0:03:00]}  Nc6 {[%clk 0:03:00]} 3. Nc3 {[%clk 0:03:00]}  e6 {[%clk 0:02:55]} 4. d4 {[%clk 0:02:59]}  cxd4 {[%clk 0:02:55]} 5. Nxd4 {[%clk 0:03:00]}  Qc7 {[%clk 0:02:54]} 6. Be3 {[%clk 0:02:59]}  a6 {[%clk 0:02:55]} 7. Bd3 {[%clk 0:03:00]}  Nf6 {[%clk 0:02:54]} 8. O-O {[%clk 0:02:59]}  d6 {[%clk 0:02:50]} 9. Kh1 {[%clk 0:02:49]}  Bd7 {[%clk 0:02:48]} 10. f4 {[%clk 0:02:39]}  Be7 {[%clk 0:02:46]} 11. Qf3 {[%clk 0:02:38]}  h5 {[%clk 0:02:42]} 12. a3 {[%clk 0:02:29]}  Ng4 {[%clk 0:02:40]} 13. Bg1 {[%clk 0:02:26]}  Bf6 {[%clk 0:02:40]} 14. Nde2 {[%clk 0:02:10]}  g5 {[%clk 0:02:16]} 15. e5 {[%clk 0:01:57]}  dxe5 {[%clk 0:01:55]} 16. fxg5 {[%clk 0:01:57]}  Bxg5 {[%clk 0:01:56]} 17. Qxf7+ {[%clk 0:01:55]}  Kd8 {[%clk 0:01:56]} 18. Qg7 {[%clk 0:01:46]}  Re8 {[%clk 0:01:25]} 19. Qxg5+ {[%clk 0:01:44]}  Kc8 {[%clk 0:01:26]} 20. Ne4 {[%clk 0:01:42]}  b6 {[%clk 0:01:19]} 21. Rad1 {[%clk 0:01:42]}  Kb7 {[%clk 0:01:19]} 22. Nd6+ {[%clk 0:01:39]}  Ka7 {[%clk 0:01:17]} 23. Nxe8 {[%clk 0:01:38]}  Rxe8 {[%clk 0:01:18]} 24. Be4 {[%clk 0:01:35]}  Nd4 {[%clk 0:01:16]} 25. Nxd4 {[%clk 0:01:25]}  exd4 {[%clk 0:01:17]} 26. Rxd4 {[%clk 0:01:24]}  Bb5 {[%clk 0:01:17]} 27. Rfd1 {[%clk 0:01:18]}  Re7 {[%clk 0:01:08]} 28. Rd6 {[%clk 0:01:10]}  Rg7 {[%clk 0:01:02]} 29. Bxb6+ {[%clk 0:01:06]} 1-0


[Site "https://www.chess.com"]

[Event "Titled Tuesday Blitz May 9 Early 2023"]
[White "Pajeken, Jakob Leon"]
[Black "Tarasova, Viktoriya"]
[WhiteFideId "12942839"]
[BlackFideId "4175840"]
[WhiteElo "2405"]
[BlackElo "2182"]
[Result "1-0"]
[Round "03"]
[TimeControl "180+2"]
[Date "2023.05.09"]
[WhiteClock "0:00:33"]
[BlackClock "0:00:00"]

1. d4 {[%clk 0:03:00]}  Nf6 {[%clk 0:02:59]} 2. Nf3 {[%clk 0:03:01]}  e6 {[%clk 0:02:59]} 3. Bf4 {[%clk 0:03:02]}  d5 {[%clk 0:02:58]} 4. e3 {[%clk 0:03:02]}  c5 {[%clk 0:02:59]} 5. c3 {[%clk 0:03:02]}  Bd6 {[%clk 0:02:59]} 6. Bb5+ {[%clk 0:03:02]}  Nc6 {[%clk 0:02:58]} 7. Bxc6+ {[%clk 0:03:02]}  bxc6 {[%clk 0:02:58]} 8. Bxd6 {[%clk 0:03:03]}  Qxd6 {[%clk 0:02:58]} 9. Qa4 {[%clk 0:03:04]}  cxd4 {[%clk 0:02:53]} 10. cxd4 {[%clk 0:03:05]}  O-O {[%clk 0:02:53]} 11. O-O {[%clk 0:03:04]}  c5 {[%clk 0:02:53]} 12. Qa3 {[%clk 0:03:04]}  Ne4 {[%clk 0:02:49]} 13. Rc1 {[%clk 0:03:03]}  c4 {[%clk 0:02:46]} 14. Qxd6 {[%clk 0:02:58]}  Nxd6 {[%clk 0:02:46]} 15. b3 {[%clk 0:02:55]}  Ba6 {[%clk 0:02:43]} 16. b4 {[%clk 0:02:53]}  Rab8 {[%clk 0:02:40]} 17. a3 {[%clk 0:02:52]}  Bc8 {[%clk 0:02:10]} 18. Nc3 {[%clk 0:02:47]}  f6 {[%clk 0:01:55]} 19. Nd2 {[%clk 0:02:40]}  Bd7 {[%clk 0:01:29]} 20. e4 {[%clk 0:02:37]}  Bc6 {[%clk 0:01:29]} 21. f3 {[%clk 0:02:30]}  Rfd8 {[%clk 0:01:18]} 22. Re1 {[%clk 0:02:25]}  Rb7 {[%clk 0:01:18]} 23. e5 {[%clk 0:02:18]}  fxe5 {[%clk 0:01:15]} 24. Rxe5 {[%clk 0:02:19]}  Bd7 {[%clk 0:01:11]} 25. Rae1 {[%clk 0:02:04]}  Nf7 {[%clk 0:00:58]} 26. R5e3 {[%clk 0:02:01]}  Rb6 {[%clk 0:00:57]} 27. f4 {[%clk 0:01:58]}  g6 {[%clk 0:00:57]} 28. g4 {[%clk 0:01:54]}  Kg7 {[%clk 0:00:55]} 29. Nf3 {[%clk 0:01:52]}  Ra8 {[%clk 0:00:44]} 30. Ne5 {[%clk 0:01:43]}  Nxe5 {[%clk 0:00:34]} 31. Rxe5 {[%clk 0:01:44]}  Rd6 {[%clk 0:00:21]} 32. f5 {[%clk 0:01:25]}  gxf5 {[%clk 0:00:21]} 33. gxf5 {[%clk 0:01:25]}  Kf6 {[%clk 0:00:20]} 34. fxe6 {[%clk 0:01:22]}  Bxe6 {[%clk 0:00:20]} 35. Rxe6+ {[%clk 0:01:22]}  Rxe6 {[%clk 0:00:20]} 36. Nxd5+ {[%clk 0:01:22]}  Kf7 {[%clk 0:00:21]} 37. Rf1+ {[%clk 0:01:11]}  Kg7 {[%clk 0:00:20]} 38. Nf4 {[%clk 0:01:05]}  Re4 {[%clk 0:00:17]} 39. d5 {[%clk 0:01:04]}  Kh6 {[%clk 0:00:05]} 40. Ne6 {[%clk 0:01:01]}  Rg8+ {[%clk 0:00:04]} 41. Kh1 {[%clk 0:01:01]}  Re2 {[%clk 0:00:05]} 42. Rd1 {[%clk 0:00:53]}  c3 {[%clk 0:00:04]} 43. Nd4 {[%clk 0:00:50]}  Rd2 {[%clk 0:00:04]} 44. Nf5+ {[%clk 0:00:46]}  Kh5 {[%clk 0:00:04]} 45. Rf1 {[%clk 0:00:43]}  c2 {[%clk 0:00:04]} 46. Ne3 {[%clk 0:00:42]}  Re2 {[%clk 0:00:03]} 47. Nf5 {[%clk 0:00:33]}  Rc8 {[%clk 0:00:03]} 48. Ng3+ {[%clk 0:00:33]}  Kg4 {[%clk 0:00:03]} 49. Nxe2 {[%clk 0:00:34]}  c1=Q {[%clk 0:00:00]} 50. Rxc1 {[%clk 0:00:33]} 1-0


[Site "https://www.chess.com"]

[Event "Titled Tuesday Blitz May 9 Early 2023"]
[White "Maurizzi, Marc`Andria"]
[Black "Mika, Tomasz"]
[WhiteFideId "36083534"]
[BlackFideId "1132970"]
[WhiteElo "2421"]
[BlackElo "2179"]
[Result "1-0"]
[Round "03"]
[TimeControl "180+2"]
[Date "2023.05.09"]
[WhiteClock "0:01:15"]
[BlackClock "0:00:00"]

1. Nf3 {[%clk 0:03:00]}  Nf6 {[%clk 0:02:58]} 2. d4 {[%clk 0:02:59]}  d5 {[%clk 0:02:57]} 3. Bf4 {[%clk 0:02:59]}  c5 {[%clk 0:02:53]} 4. e3 {[%clk 0:02:59]}  Nc6 {[%clk 0:02:52]} 5. Nbd2 {[%clk 0:02:59]}  cxd4 {[%clk 0:02:46]} 6. exd4 {[%clk 0:02:59]}  Bg4 {[%clk 0:02:41]} 7. c3 {[%clk 0:02:59]}  e6 {[%clk 0:02:38]} 8. Qb3 {[%clk 0:02:59]}  Qd7 {[%clk 0:02:30]} 9. Ne5 {[%clk 0:02:59]}  Qc8 {[%clk 0:02:20]} 10. Bb5 {[%clk 0:02:44]}  Bf5 {[%clk 0:01:51]} 11. Qa4 {[%clk 0:02:41]}  a6 {[%clk 0:01:42]} 12. Bxc6+ {[%clk 0:02:38]}  bxc6 {[%clk 0:01:42]} 13. Nxc6 {[%clk 0:02:39]}  Nd7 {[%clk 0:01:41]} 14. Ne5 {[%clk 0:02:38]}  Ra7 {[%clk 0:01:41]} 15. Nb3 {[%clk 0:02:37]}  f6 {[%clk 0:01:23]} 16. Nxd7 {[%clk 0:02:25]}  Rxd7 {[%clk 0:01:24]} 17. O-O {[%clk 0:02:25]}  Be7 {[%clk 0:01:16]} 18. Rfe1 {[%clk 0:02:23]}  Kf7 {[%clk 0:01:12]} 19. Na5 {[%clk 0:02:22]}  g5 {[%clk 0:01:00]} 20. Bd2 {[%clk 0:02:17]}  h5 {[%clk 0:00:48]} 21. Rac1 {[%clk 0:02:17]}  h4 {[%clk 0:00:18]} 22. c4 {[%clk 0:02:16]}  dxc4 {[%clk 0:00:18]} 23. Rxc4 {[%clk 0:02:16]}  Qe8 {[%clk 0:00:14]} 24. Nc6 {[%clk 0:02:07]}  Bd6 {[%clk 0:00:12]} 25. d5 {[%clk 0:02:05]}  e5 {[%clk 0:00:10]} 26. Bb4 {[%clk 0:01:59]}  h3 {[%clk 0:00:09]} 27. g3 {[%clk 0:01:59]}  Bxb4 {[%clk 0:00:04]} 28. Nxb4 {[%clk 0:02:00]}  Qd8 {[%clk 0:00:02]} 29. Nc6 {[%clk 0:01:59]}  Qa8 {[%clk 0:00:01]} 30. g4 {[%clk 0:01:17]}  Bxg4 {[%clk 0:00:01]} 31. Rxg4 {[%clk 0:01:16]}  Rxd5 {[%clk 0:00:02]} 32. Qc4 {[%clk 0:01:16]}  Kg7 {[%clk 0:00:01]} 33. Qxd5 {[%clk 0:01:16]}  Rc8 {[%clk 0:00:01]} 34. Qd7+ {[%clk 0:01:16]}  Kg6 {[%clk 0:00:01]} 35. Nxe5+ {[%clk 0:01:16]}  fxe5 {[%clk 0:00:01]} 36. Qe6+ {[%clk 0:01:16]}  Kh5 {[%clk 0:00:01]} 37. Rg3 {[%clk 0:01:15]}  Qg2+ {[%clk 0:00:00]} 38. Rxg2 {[%clk 0:01:15]} 1-0


[Site "https://www.chess.com"]

[Event "Titled Tuesday Blitz May 9 Early 2023"]
[White "Sreyas Payyappat"]
[Black "Kohler, Aran"]
[WhiteFideId "46674969"]
[BlackFideId "1002856"]
[WhiteElo "2043"]
[BlackElo "2335"]
[Result "0-1"]
[Round "03"]
[TimeControl "180+2"]
[Date "2023.05.09"]
[WhiteClock "0:00:04"]
[BlackClock "0:00:17"]

1. e4 {[%clk 0:03:00]}  c6 {[%clk 0:02:59]} 2. d4 {[%clk 0:03:00]}  d5 {[%clk 0:02:59]} 3. Nc3 {[%clk 0:03:01]}  dxe4 {[%clk 0:02:58]} 4. Nxe4 {[%clk 0:03:02]}  Bf5 {[%clk 0:02:59]} 5. Ng3 {[%clk 0:03:01]}  Bg6 {[%clk 0:02:59]} 6. Nf3 {[%clk 0:03:02]}  Nd7 {[%clk 0:02:59]} 7. h4 {[%clk 0:03:01]}  h6 {[%clk 0:02:58]} 8. Bd3 {[%clk 0:03:00]}  Bxd3 {[%clk 0:02:57]} 9. Qxd3 {[%clk 0:03:01]}  e6 {[%clk 0:02:58]} 10. Bd2 {[%clk 0:03:01]}  Ngf6 {[%clk 0:02:57]} 11. O-O-O {[%clk 0:03:02]}  Be7 {[%clk 0:02:53]} 12. Rde1 {[%clk 0:03:01]}  a5 {[%clk 0:02:46]} 13. Ne4 {[%clk 0:02:53]}  Nxe4 {[%clk 0:02:44]} 14. Qxe4 {[%clk 0:02:54]}  Nf6 {[%clk 0:02:43]} 15. Qd3 {[%clk 0:02:54]}  a4 {[%clk 0:02:29]} 16. g4 {[%clk 0:02:44]}  a3 {[%clk 0:02:20]} 17. b3 {[%clk 0:02:33]}  Nxg4 {[%clk 0:02:19]} 18. Rhg1 {[%clk 0:02:32]}  h5 {[%clk 0:02:19]} 19. Ng5 {[%clk 0:02:15]}  Bxg5 {[%clk 0:02:01]} 20. Bxg5 {[%clk 0:02:03]}  Qd5 {[%clk 0:01:42]} 21. f3 {[%clk 0:01:51]}  Nf2 {[%clk 0:01:30]} 22. Qe3 {[%clk 0:01:46]}  Nh3 {[%clk 0:01:29]} 23. Rg3 {[%clk 0:01:44]}  Nxg5 {[%clk 0:01:29]} 24. Rxg5 {[%clk 0:01:45]}  Qd7 {[%clk 0:01:09]} 25. Rxg7 {[%clk 0:01:37]}  O-O-O {[%clk 0:01:10]} 26. Rg5 {[%clk 0:01:27]}  Qxd4 {[%clk 0:01:08]} 27. Qxd4 {[%clk 0:01:15]}  Rxd4 {[%clk 0:01:08]} 28. Re4 {[%clk 0:01:15]}  Rxe4 {[%clk 0:01:01]} 29. fxe4 {[%clk 0:01:16]}  Kd7 {[%clk 0:01:00]} 30. Kd2 {[%clk 0:01:11]}  b5 {[%clk 0:00:57]} 31. Kc3 {[%clk 0:01:06]}  f6 {[%clk 0:00:50]} 32. Rg7+ {[%clk 0:01:05]}  Kd6 {[%clk 0:00:51]} 33. Kd4 {[%clk 0:01:02]}  c5+ {[%clk 0:00:50]} 34. Ke3 {[%clk 0:00:59]}  Rc8 {[%clk 0:00:29]} 35. c3 {[%clk 0:00:54]}  Ke5 {[%clk 0:00:29]} 36. Rh7 {[%clk 0:00:40]}  f5 {[%clk 0:00:28]} 37. Rxh5 {[%clk 0:00:38]}  b4 {[%clk 0:00:28]} 38. c4 {[%clk 0:00:28]}  Rd8 {[%clk 0:00:28]} 39. exf5 {[%clk 0:00:26]}  exf5 {[%clk 0:00:27]} 40. Rg5 {[%clk 0:00:20]}  Rd1 {[%clk 0:00:26]} 41. Rg2 {[%clk 0:00:19]}  Rh1 {[%clk 0:00:24]} 42. Rd2 {[%clk 0:00:18]}  Rh3+ {[%clk 0:00:23]} 43. Ke2 {[%clk 0:00:18]}  Rxh4 {[%clk 0:00:21]} 44. Kf3 {[%clk 0:00:14]}  Rh3+ {[%clk 0:00:20]} 45. Kg2 {[%clk 0:00:15]}  Re3 {[%clk 0:00:17]} 46. Kf2 {[%clk 0:00:13]}  Rc3 {[%clk 0:00:17]} 47. Rd5+ {[%clk 0:00:13]}  Ke4 {[%clk 0:00:17]} 48. Rd2 {[%clk 0:00:10]}  f4 {[%clk 0:00:17]} 49. Rd8 {[%clk 0:00:05]}  Rc2+ {[%clk 0:00:17]} 50. Ke1 {[%clk 0:00:04]}  Rxa2 {[%clk 0:00:17]} 0-1


[Site "https://www.chess.com"]

[Event "Titled Tuesday Blitz May 9 Early 2023"]
[White "Hinds, Nathan"]
[Black "Saya, Ethan"]
[WhiteFideId "7400730"]
[BlackFideId "26095181"]
[WhiteElo "2001"]
[BlackElo "2164"]
[Result "0-1"]
[Round "03"]
[TimeControl "180+2"]
[Date "2023.05.09"]
[WhiteClock "0:00:00"]
[BlackClock "0:01:01"]

1. Nf3 {[%clk 0:03:00]}  d5 {[%clk 0:02:59]} 2. d4 {[%clk 0:03:00]}  c6 {[%clk 0:02:59]} 3. c4 {[%clk 0:02:59]}  e6 {[%clk 0:02:59]} 4. g3 {[%clk 0:03:00]}  Nf6 {[%clk 0:02:57]} 5. Bg2 {[%clk 0:03:00]}  Be7 {[%clk 0:02:58]} 6. O-O {[%clk 0:03:00]}  O-O {[%clk 0:02:58]} 7. Nfd2 {[%clk 0:03:01]}  c5 {[%clk 0:02:51]} 8. dxc5 {[%clk 0:02:49]}  Bxc5 {[%clk 0:02:48]} 9. cxd5 {[%clk 0:02:49]}  exd5 {[%clk 0:02:24]} 10. Nb3 {[%clk 0:02:47]}  Bb6 {[%clk 0:02:23]} 11. Bg5 {[%clk 0:02:47]}  Nc6 {[%clk 0:02:21]} 12. Nc3 {[%clk 0:02:43]}  Be6 {[%clk 0:02:21]} 13. Bxf6 {[%clk 0:02:08]}  Qxf6 {[%clk 0:02:22]} 14. Nxd5 {[%clk 0:02:08]}  Qxb2 {[%clk 0:02:15]} 15. Nf4 {[%clk 0:02:01]}  Bxb3 {[%clk 0:02:14]} 16. Qxb3 {[%clk 0:02:01]}  Qxb3 {[%clk 0:02:13]} 17. axb3 {[%clk 0:02:02]}  Rac8 {[%clk 0:02:05]} 18. e3 {[%clk 0:01:46]}  Rfd8 {[%clk 0:02:03]} 19. Nd5 {[%clk 0:01:44]}  Bc5 {[%clk 0:01:54]} 20. Rfc1 {[%clk 0:01:38]}  Bf8 {[%clk 0:01:54]} 21. Ra4 {[%clk 0:01:30]}  a6 {[%clk 0:01:52]} 22. Rac4 {[%clk 0:01:26]}  Na7 {[%clk 0:01:46]} 23. Nb6 {[%clk 0:01:05]}  Rxc4 {[%clk 0:01:45]} 24. Rxc4 {[%clk 0:01:06]}  Rd1+ {[%clk 0:01:40]} 25. Bf1 {[%clk 0:01:06]}  Nc6 {[%clk 0:01:41]} 26. Kg2 {[%clk 0:00:59]}  Rb1 {[%clk 0:01:40]} 27. Rc3 {[%clk 0:00:49]}  g6 {[%clk 0:01:38]} 28. Bc4 {[%clk 0:00:45]}  Bg7 {[%clk 0:01:37]} 29. Rd3 {[%clk 0:00:45]}  Ne5 {[%clk 0:01:36]} 30. Rd8+ {[%clk 0:00:45]}  Bf8 {[%clk 0:01:36]} 31. Nd7 {[%clk 0:00:36]}  Nxd7 {[%clk 0:01:32]} 32. Rxd7 {[%clk 0:00:37]}  b5 {[%clk 0:01:30]} 33. Bxf7+ {[%clk 0:00:35]}  Kg7 {[%clk 0:01:28]} 34. Bd5+ {[%clk 0:00:36]}  Kh6 {[%clk 0:01:26]} 35. h4 {[%clk 0:00:30]}  Rd1 {[%clk 0:01:18]} 36. e4 {[%clk 0:00:26]}  Bc5 {[%clk 0:01:16]} 37. Rf7 {[%clk 0:00:25]}  a5 {[%clk 0:01:13]} 38. g4 {[%clk 0:00:18]}  a4 {[%clk 0:01:07]} 39. bxa4 {[%clk 0:00:18]}  bxa4 {[%clk 0:01:08]} 40. g5+ {[%clk 0:00:13]}  Kh5 {[%clk 0:01:07]} 41. Rxh7+ {[%clk 0:00:02]}  Kg4 {[%clk 0:01:07]} 42. f3+ {[%clk 0:00:02]}  Kf4 {[%clk 0:01:07]} 43. Rf7+ {[%clk 0:00:03]}  Ke3 {[%clk 0:01:07]} 44. Kg3 {[%clk 0:00:01]}  Rg1+ {[%clk 0:01:07]} 45. Kh3 {[%clk 0:00:01]}  Rh1+ {[%clk 0:01:07]} 46. Kg3 {[%clk 0:00:02]}  a3 {[%clk 0:01:04]} 47. Kg2 {[%clk 0:00:03]}  Rxh4 {[%clk 0:01:04]} 48. Rb7 {[%clk 0:00:02]}  Rh5 {[%clk 0:01:02]} 49. Rb3+ {[%clk 0:00:02]}  Kd4 {[%clk 0:01:02]} 50. Rb1 {[%clk 0:00:03]}  Rxg5+ {[%clk 0:01:02]} 51. Kf2 {[%clk 0:00:03]}  Kc3+ {[%clk 0:01:03]} 52. Ke2 {[%clk 0:00:04]}  a2 {[%clk 0:01:01]} 53. Rc1+ {[%clk 0:00:04]}  Kb2 {[%clk 0:01:00]} 54. Bxa2 {[%clk 0:00:05]}  Kxc1 {[%clk 0:01:00]} 55. Bd5 {[%clk 0:00:06]}  Kc2 {[%clk 0:00:59]} 56. f4 {[%clk 0:00:06]}  Rg3 {[%clk 0:00:59]} 57. f5 {[%clk 0:00:04]}  gxf5 {[%clk 0:00:58]} 58. Kf1 {[%clk 0:00:03]}  fxe4 {[%clk 0:00:58]} 59. Bxe4+ {[%clk 0:00:04]}  Kc3 {[%clk 0:00:57]} 60. Bg2 {[%clk 0:00:04]}  Kd4 {[%clk 0:00:57]} 61. Bc6 {[%clk 0:00:04]}  Ke3 {[%clk 0:00:57]} 62. Bg2 {[%clk 0:00:03]}  Bd6 {[%clk 0:00:57]} 63. Bh3 {[%clk 0:00:02]}  Bf4 {[%clk 0:00:58]} 64. Bg2 {[%clk 0:00:02]}  Rg5 {[%clk 0:00:59]} 65. Bh3 {[%clk 0:00:02]}  Ra5 {[%clk 0:01:00]} 66. Kg2 {[%clk 0:00:00]}  Ra1 {[%clk 0:01:01]} 0-1


[Site "https://www.chess.com"]

[Event "Titled Tuesday Blitz May 9 Early 2023"]
[White "wqws"]
[Black "Vifleemskaia, Svetlana"]
[BlackFideId "4129490"]
[WhiteElo "2556"]
[BlackElo "1930"]
[Result "0-1"]
[Round "03"]
[TimeControl "180+2"]
[Date "2023.05.09"]
[WhiteClock "0:00:10"]
[BlackClock "0:00:08"]

1. e4 {[%clk 0:02:52]}  e5 {[%clk 0:02:59]} 2. Nf3 {[%clk 0:02:46]}  Nc6 {[%clk 0:02:59]} 3. Bb5 {[%clk 0:02:46]}  a6 {[%clk 0:02:59]} 4. Ba4 {[%clk 0:02:46]}  Nf6 {[%clk 0:02:58]} 5. d3 {[%clk 0:02:44]}  d6 {[%clk 0:02:56]} 6. c3 {[%clk 0:02:43]}  g6 {[%clk 0:02:56]} 7. Nbd2 {[%clk 0:02:43]}  Bg7 {[%clk 0:02:57]} 8. Nf1 {[%clk 0:02:44]}  O-O {[%clk 0:02:56]} 9. Ne3 {[%clk 0:02:44]}  b5 {[%clk 0:02:52]} 10. Bb3 {[%clk 0:02:44]}  Be6 {[%clk 0:02:50]} 11. h4 {[%clk 0:02:44]}  Bxb3 {[%clk 0:02:47]} 12. axb3 {[%clk 0:02:43]}  h5 {[%clk 0:02:47]} 13. Ng5 {[%clk 0:02:43]}  Qd7 {[%clk 0:02:44]} 14. Qf3 {[%clk 0:02:39]}  Ng4 {[%clk 0:02:34]} 15. Nd5 {[%clk 0:02:23]}  a5 {[%clk 0:02:28]} 16. Qe2 {[%clk 0:02:19]}  Ne7 {[%clk 0:02:18]} 17. Nxe7+ {[%clk 0:02:10]}  Qxe7 {[%clk 0:02:18]} 18. f3 {[%clk 0:02:10]}  Nf6 {[%clk 0:02:09]} 19. Nh3 {[%clk 0:02:08]}  d5 {[%clk 0:02:03]} 20. Nf2 {[%clk 0:02:06]}  a4 {[%clk 0:01:55]} 21. b4 {[%clk 0:02:04]}  c5 {[%clk 0:01:52]} 22. bxc5 {[%clk 0:02:00]}  Qxc5 {[%clk 0:01:51]} 23. O-O {[%clk 0:02:01]}  dxe4 {[%clk 0:01:42]} 24. fxe4 {[%clk 0:01:58]}  Ng4 {[%clk 0:01:34]} 25. Kh1 {[%clk 0:01:52]}  Nxf2+ {[%clk 0:01:28]} 26. Qxf2 {[%clk 0:01:49]}  Qxf2 {[%clk 0:01:26]} 27. Rxf2 {[%clk 0:01:49]}  Rfd8 {[%clk 0:01:17]} 28. Rf3 {[%clk 0:01:49]}  Ra7 {[%clk 0:01:13]} 29. Bg5 {[%clk 0:01:43]}  Rd6 {[%clk 0:01:09]} 30. b3 {[%clk 0:01:31]}  a3 {[%clk 0:00:54]} 31. Be3 {[%clk 0:01:10]}  Ra8 {[%clk 0:00:47]} 32. Bc5 {[%clk 0:01:08]}  Rc6 {[%clk 0:00:36]} 33. b4 {[%clk 0:01:01]}  Bf8 {[%clk 0:00:35]} 34. d4 {[%clk 0:01:00]}  Bxc5 {[%clk 0:00:28]} 35. dxc5 {[%clk 0:00:54]}  a2 {[%clk 0:00:25]} 36. Rf2 {[%clk 0:00:51]}  Rca6 {[%clk 0:00:24]} 37. Rc2 {[%clk 0:00:49]}  Ra4 {[%clk 0:00:23]} 38. Kg1 {[%clk 0:00:49]}  Kf8 {[%clk 0:00:23]} 39. Kf1 {[%clk 0:00:48]}  Ke7 {[%clk 0:00:23]} 40. Ke1 {[%clk 0:00:48]}  f5 {[%clk 0:00:23]} 41. exf5 {[%clk 0:00:44]}  gxf5 {[%clk 0:00:24]} 42. Kd1 {[%clk 0:00:43]}  Ke6 {[%clk 0:00:23]} 43. Kc1 {[%clk 0:00:44]}  e4 {[%clk 0:00:19]} 44. Kb2 {[%clk 0:00:44]}  f4 {[%clk 0:00:19]} 45. Rd2 {[%clk 0:00:39]}  Ke5 {[%clk 0:00:14]} 46. c6 {[%clk 0:00:33]}  Rc8 {[%clk 0:00:13]} 47. Kb3 {[%clk 0:00:29]}  Rxc6 {[%clk 0:00:11]} 48. Raxa2 {[%clk 0:00:29]}  Rxa2 {[%clk 0:00:11]} 49. Rxa2 {[%clk 0:00:30]}  e3 {[%clk 0:00:12]} 50. Kc2 {[%clk 0:00:22]}  Rg6 {[%clk 0:00:11]} 51. Kd3 {[%clk 0:00:21]}  Rd6+ {[%clk 0:00:11]} 52. Ke2 {[%clk 0:00:21]}  Ke4 {[%clk 0:00:12]} 53. Ra5 {[%clk 0:00:16]}  Rd2+ {[%clk 0:00:11]} 54. Ke1 {[%clk 0:00:17]}  Rxg2 {[%clk 0:00:11]} 55. Rxb5 {[%clk 0:00:17]}  Kf3 {[%clk 0:00:11]} 56. Kd1 {[%clk 0:00:16]}  e2+ {[%clk 0:00:09]} 57. Kd2 {[%clk 0:00:11]}  Rg1 {[%clk 0:00:10]} 58. Re5 {[%clk 0:00:11]}  Rd1+ {[%clk 0:00:10]} 59. Kc2 {[%clk 0:00:11]}  e1=Q {[%clk 0:00:10]} 60. Rxe1 {[%clk 0:00:12]}  Rxe1 {[%clk 0:00:10]} 61. b5 {[%clk 0:00:13]}  Ke4 {[%clk 0:00:09]} 62. b6 {[%clk 0:00:10]}  Kd5 {[%clk 0:00:08]} 63. b7 {[%clk 0:00:10]}  Re8 {[%clk 0:00:08]} 0-1


[Site "https://www.chess.com"]

[Event "Titled Tuesday Blitz May 9 Early 2023"]
[White "Mike24147"]
[Black "Vlassov, Nikolai"]
[BlackFideId "4103360"]
[WhiteElo "2311"]
[BlackElo "2324"]
[Result "0-1"]
[Round "03"]
[TimeControl "180+2"]
[Date "2023.05.09"]
[WhiteClock "0:00:00"]
[BlackClock "0:00:22"]

1. e4 {[%clk 0:02:59]}  Nc6 {[%clk 0:02:59]} 2. Nf3 {[%clk 0:02:59]}  d5 {[%clk 0:02:59]} 3. exd5 {[%clk 0:02:59]}  Qxd5 {[%clk 0:03:00]} 4. Nc3 {[%clk 0:02:59]}  Qa5 {[%clk 0:03:00]} 5. Bb5 {[%clk 0:02:59]}  Bd7 {[%clk 0:03:00]} 6. d4 {[%clk 0:02:57]}  a6 {[%clk 0:02:59]} 7. Be2 {[%clk 0:02:56]}  O-O-O {[%clk 0:02:57]} 8. O-O {[%clk 0:02:52]}  Bg4 {[%clk 0:02:56]} 9. Be3 {[%clk 0:02:43]}  Nh6 {[%clk 0:02:52]} 10. h3 {[%clk 0:02:36]}  Bh5 {[%clk 0:02:51]} 11. Bxh6 {[%clk 0:02:20]}  gxh6 {[%clk 0:02:50]} 12. d5 {[%clk 0:02:03]}  e6 {[%clk 0:02:49]} 13. Ne5 {[%clk 0:01:21]}  Nxe5 {[%clk 0:02:41]} 14. Bxh5 {[%clk 0:01:18]}  exd5 {[%clk 0:02:41]} 15. Qd4 {[%clk 0:01:12]}  Bg7 {[%clk 0:02:39]} 16. Qa7 {[%clk 0:01:12]}  Qb6 {[%clk 0:02:14]} 17. Qxb6 {[%clk 0:00:56]}  cxb6 {[%clk 0:02:14]} 18. Rad1 {[%clk 0:00:56]}  d4 {[%clk 0:02:10]} 19. Na4 {[%clk 0:00:51]}  Kc7 {[%clk 0:02:07]} 20. f4 {[%clk 0:00:49]}  Nc4 {[%clk 0:01:54]} 21. Rfe1 {[%clk 0:00:48]}  Ne3 {[%clk 0:01:48]} 22. Rd2 {[%clk 0:00:42]}  f5 {[%clk 0:01:48]} 23. Bf3 {[%clk 0:00:34]}  Rd6 {[%clk 0:01:39]} 24. c3 {[%clk 0:00:29]}  Rhd8 {[%clk 0:01:26]} 25. cxd4 {[%clk 0:00:20]}  Rxd4 {[%clk 0:01:24]} 26. Rxd4 {[%clk 0:00:16]}  Bxd4 {[%clk 0:01:23]} 27. Kh1 {[%clk 0:00:15]}  b5 {[%clk 0:01:22]} 28. Nc3 {[%clk 0:00:15]}  Bxc3 {[%clk 0:01:19]} 29. bxc3 {[%clk 0:00:15]}  Rd3 {[%clk 0:01:18]} 30. Rc1 {[%clk 0:00:10]}  b6 {[%clk 0:01:04]} 31. Be2 {[%clk 0:00:08]}  Rd2 {[%clk 0:01:04]} 32. Bf3 {[%clk 0:00:09]}  Rxa2 {[%clk 0:01:04]} 33. Re1 {[%clk 0:00:07]}  Nc4 {[%clk 0:01:00]} 34. Re7+ {[%clk 0:00:07]}  Kd6 {[%clk 0:01:00]} 35. Rxh7 {[%clk 0:00:07]}  Nd2 {[%clk 0:00:50]} 36. Rxh6+ {[%clk 0:00:07]}  Kd7 {[%clk 0:00:47]} 37. Rxb6 {[%clk 0:00:07]}  Nxf3 {[%clk 0:00:44]} 38. gxf3 {[%clk 0:00:08]}  Kc7 {[%clk 0:00:45]} 39. Rf6 {[%clk 0:00:08]}  a5 {[%clk 0:00:43]} 40. Rxf5 {[%clk 0:00:08]}  Kc6 {[%clk 0:00:44]} 41. h4 {[%clk 0:00:07]}  a4 {[%clk 0:00:44]} 42. h5 {[%clk 0:00:07]}  a3 {[%clk 0:00:44]} 43. Rf6+ {[%clk 0:00:05]}  Kb7 {[%clk 0:00:41]} 44. Rf7+ {[%clk 0:00:06]}  Kb6 {[%clk 0:00:41]} 45. Rf6+ {[%clk 0:00:05]}  Ka5 {[%clk 0:00:41]} 46. Rf8 {[%clk 0:00:06]}  Rf2 {[%clk 0:00:30]} 47. Ra8+ {[%clk 0:00:04]}  Kb6 {[%clk 0:00:30]} 48. Rxa3 {[%clk 0:00:05]}  Rxf3 {[%clk 0:00:30]} 49. Ra8 {[%clk 0:00:04]}  Rxc3 {[%clk 0:00:26]} 50. Kg2 {[%clk 0:00:03]}  Rc5 {[%clk 0:00:23]} 51. Rh8 {[%clk 0:00:02]}  b4 {[%clk 0:00:23]} 52. h6 {[%clk 0:00:03]}  Kb7 {[%clk 0:00:21]} 53. h7 {[%clk 0:00:02]}  Rh5 {[%clk 0:00:21]} 54. f5 {[%clk 0:00:00]}  b3 {[%clk 0:00:22]} 0-1


[Site "https://www.chess.com"]